[Event "3rd elllobregat Open 2022"]
[Site "Baix Llobregat"]
[Date "2022.11.30"]
[Round "1.1"]
[White "Vallejo Pons, Francisco"]
[Black "Seemann, Jakub"]
[Result "1-0"]
[ECO "A22"]
[WhiteElo "2716"]
[BlackElo "2375"]
[Annotator "TA"]
[PlyCount "73"]
[EventDate "2022.11.30"]
[EventType "swiss"]
[EventCountry "ESP"]
[SourceTitle "playchess.com"]
[Source "ChessBase"]
[SourceQuality "1"]
[TimeControl "40/5400+30:1800+30"]

{[%evp 10,73,0,0,8,12,13,11,24,32,27,0,0,0,0,-44,-17,-4,48,47,47,50,51,33,33,34,58,64,66,43,85,100,90,97,91,96,135,123,122,111,169,150,217,229,393,389,392,382,372,367,871,867,850,869,843,837,1316,1270,2592,1804,29980,29981,29981,29982,29994,29995]} 1. c4 {[%emt 0:00:05]} e5 {[%emt 0:00:27]} 2. Nc3 {[%emt 0:00:34]} Nf6 {[%emt 0:00:14]} 3. g3 {[%emt 0:00:36]} d5 {[%emt 0:00:08]} 4. cxd5 {[%emt 0:00:10]} Nxd5 {[%emt 0:00:05]} 5. Bg2 {[%emt 0:00:06]} Nb6 {[%emt 0:00:04]} 6. e3 {[%emt 0:00:07]} Nc6 {[%emt 0:02:49] A22: English Opening: 1...e5 2 Nc3 Nf6.} 7. Nge2 $1 {[%emt 0:00:37]} Be7 {[%emt 0:13:20] 7...h5 is the fancy move.} 8. O-O {[%emt 0:01:30]} h5 {[%emt 0:06:11] The position is equal.} 9. d4 {[%emt 0:05:59][%cal Bd2d4,Bd4d5][%mdl 32]} h4 {[%emt 0:02:47]} 10. d5 {[%emt 0:16:50]} Nb8 {[%emt 0:00:59][%cal Bc6b8,Bb8a6,Ba6b4][%mdl 32] [#]} 11. Qc2 $146 {[%emt 0:05:42]} ({Predecessor:} 11. a4 hxg3 12. hxg3 Bd6 13. a5 N6d7 14. e4 Nf6 15. Bg5 Bh3 16. Bxh3 Rxh3 17. Kg2 {0-1 (79) Klekowski,M (2514)-Semjonovs,I (2361) Chess.com INT 2019}) 11... Na6 {[%emt 0:07:48]} 12. a4 {[%emt 0:24:53][%cal Ba2a4,Ba4a5][%mdl 32]} Nb4 {[%emt 0:14:23]} (12... Nd7 {simplifies} 13. e4 hxg3 14. hxg3 Nf6) 13. Qe4 {[%emt 0:04:18]} Bd6 {[%emt 0:01:47]} (13... hxg3 $11 14. fxg3 Nd7) 14. a5 $36 {[%emt 0:03:33][%mdl 2048] Black is under pressure.} Nd7 {[%emt 0:04:41]} 15. Nb5 {[%emt 0:02:04] [#] Threatens to win with Nxd6+.} Nf6 {[%emt 0:05:24]} 16. Qc4 {[%emt 0:03:39]} hxg3 {[%emt 0:00:32]} 17. fxg3 {[%emt 0:04:17]} Bh3 {[%emt 0:05:23]} 18. Bxh3 {[%emt 0:03:07]} Rxh3 {[%emt 0:00:15]} 19. Kg2 {[%emt 0:01:18]} (19. b3 $5 {[%cal Rb5d6]} Na6 20. Nec3 $14) 19... Rh7 {[%emt 0:05:18]} 20. e4 {[%emt 0:04:23] Black is on the road to losing.} Na6 {[%emt 0:09:20]} 21. Bg5 {[%emt 0:05:21]} (21. Nxd6+ cxd6 22. Nc3 Qd7 $14) 21... Qd7 {[%emt 0:01:48] [#] And now ...Qh3+ would win.} 22. Ng1 {[%emt 0:01:00] Against Qh3+. Active counter play!} Ng8 {[%emt 0:02:57]} 23. Rac1 {[%emt 0:02:36]} f6 {[%emt 0:01:49]} 24. Be3 {[%emt 0:00:51]} (24. Bd2 {simplifies} Nh6 25. Nxd6+ cxd6 26. Nf3) 24... Ne7 {[%emt 0:00:17]} (24... Nh6 $16 25. Nf3 (25. Nxa7 $2 Ng4 $19) (25. Bxa7 Rxa7 26. Nxa7 Ng4 $15) (25. Nxd6+ cxd6 26. Nf3 Ng8 $16) 25... Nf7) 25. Nf3 {[%emt 0:03:39]} (25. Bxa7 Bb4 $16) 25... Qh3+ {[%emt 0:03:51]} (25... Nc8 $16 26. Kg1 Rh5) 26. Kg1 $18 {[%emt 0:01:04]} g5 $2 {[%emt 0:01:11]} (26... Rh8 27. Qb3 (27. Nxa7 Qd7 $18) (27. Bxa7 Qd7 $16) (27. Nxd6+ cxd6 28. Qe2 Qd7 $16) 27... Qd7 28. Nxa7 Nb4) 27. Rf2 {[%emt 0:01:46]} (27. Bxa7 Rxa7 28. Nxa7 g4 $16) (27. Nxa7 g4 $16) (27. Nxd6+ cxd6 28. Qa4+ Qd7 $18) 27... Ng6 {[%emt 0:04:05]} 28. Nxd6+ {[%emt 0:01:03]} ({Less strong is} 28. Nxa7 Rd7 29. Qb5 Rb8 $18) ({Weaker is} 28. Bxa7 Qg4 $18) 28... cxd6 {[%emt 0:00:03]} 29. Bxg5 {[%emt 0:00:21]} fxg5 {[%emt 0:02:26]} (29... Rc7 30. Qa4+ Qd7 31. Qxd7+ Kxd7 32. Rxc7+ Nxc7 33. Bxf6 Rg8) 30. Nxg5 {[%emt 0:00:10]} Qh6 {[%emt 0:01:06]} 31. Nxh7 {[%emt 0:01:22]} Qxh7 {[%emt 0:00:03]} 32. Rf6 {[%emt 0:01:06]} Nc5 {[%emt 0:02:13]} 33. Rxd6 {[%emt 0:00:54]} Nd7 {[%emt 0:00:57]} 34. Rf1 {[%emt 0:01:45] White wants to mate with Re6+.} Ngf8 {[%emt 0:00:22] Inhibits Re6+.} 35. a6 {[%emt 0:00:24] White mates.} bxa6 {[%emt 0:02:02]} 36. Qc6 {[%emt 0:00:05]} Rd8 {[%emt 0:00:54]} 37. Rdf6 {[%emt 0:00:19] Weighted Error Value: White=0.05 (flawless) /Black=0.48} 1-0

[Event "3rd elllobregat Open 2022"]
[Site "Baix Llobregat"]
[Date "2022.11.30"]
[Round "1.1"]
[White "Shevchenko, Kirill"]
[Black "Jerez Perez, Alfonso"]
[Result "1/2-1/2"]
[ECO "A16"]
[WhiteElo "2649"]
[BlackElo "2343"]
[Annotator "TA"]
[PlyCount "61"]
[EventDate "2022.11.30"]
[EventType "swiss"]
[EventCountry "ESP"]
[SourceTitle "playchess.com"]
[Source "ChessBase"]
[SourceQuality "1"]
[TimeControl "40/5400+30:1800+30"]

{[%evp 9,61,36,49,41,50,37,36,45,54,2,58,50,76,76,82,64,77,68,68,71,72,29,54,54,49,52,76,87,73,75,62,66,67,33,68,50,112,104,112,93,162,151,187,164,161,119,100,101,184,-8,-8,-8,0,-8]} 1. Nf3 {[%emt 0:00:03]} Nf6 {[%emt 0:00:23]} 2. c4 {[%emt 0:00:12]} g6 {[%emt 0:00:17]} 3. Nc3 {[%emt 0:00:06]} d5 {[%emt 0:00:41]} 4. cxd5 {[%emt 0:00:05]} Nxd5 {[%emt 0:00:09]} 5. h4 {[%emt 0:00:01]} h6 {[%emt 0:04:26]} 6. e4 {[%emt 0:01:34] A16: English Opening: 1...Nf6 with ...d5.} Nxc3 {[%emt 0:00:08]} 7. bxc3 {[%emt 0:00:58]} Bg7 {[%emt 0:00:12]} 8. d4 {[%emt 0:02:23] White is slightly better.} c5 {[%emt 0:00:07]} 9. Be2 {[%emt 0:00:40]} (9. dxc5 Bxc3+ 10. Bd2 Bxa1 11. Qxa1 Rh7 $15) (9. Rb1 $14) 9... Bg4 {[%emt 0:07:35] [#]} ({Black should play} 9... Nc6 $11) 10. Rb1 $146 {[%emt 0:11:06]} ({Much weaker is} 10. dxc5 Bxc3+ 11. Bd2 Bxa1 12. Qxa1 Rh7 $15) ({Predecessor:} 10. Be3 Qa5 11. O-O O-O 12. Qb3 cxd4 13. cxd4 Nc6 14. Rad1 e5 15. dxe5 Nxe5 16. Rd5 {1-0 (33) Kononen,K (2260)-Paakkonen,T (2259) Finland 2016}) 10... cxd4 {[%emt 0:09:04]} 11. cxd4 {[%emt 0:09:00]} ({Of course not} 11. Rxb7 Qc8 12. Rb3 dxc3 $17) 11... Qa5+ {[%emt 0:06:05]} 12. Qd2 {[%emt 0:11:04]} Qxd2+ {[%emt 0:05:47]} 13. Bxd2 {[%emt 0:00:04]} b6 {[%emt 0:00:31]} 14. Rc1 {[%emt 0:08:25]} O-O {[%emt 0:04:22]} 15. Ne5 {[%emt 0:07:32]} Bxe2 {[%emt 0:10:36]} 16. Kxe2 {[%emt 0:02:14]} Bxe5 {[%emt 0:00:08]} 17. dxe5 {[%emt 0:00:04]} Kg7 {[%emt 0:00:11]} 18. Bb4 {[%emt 0:09:30]} Re8 {[%emt 0:01:34]} 19. Rhd1 {[%emt 0:02:42]} a5 {[%emt 0:03:55]} 20. Ba3 {[%emt 0:00:39]} Ra7 {[%emt 0:00:30] Inhibits Rc7.} 21. f4 {[%emt 0:03:45]} Nd7 {[%emt 0:05:10]} 22. Rc6 {[%emt 0:04:18]} e6 {[%emt 0:13:01]} (22... Rb7 $14) 23. Bd6 $16 {[%emt 0:02:28] White is much more active.} b5 {[%emt 0:03:03]} 24. Rdc1 {[%emt 0:02:30]} Rea8 {[%emt 0:02:00] [#]} (24... b4 $16) 25. g4 $1 $18 {[%emt 0:01:16]} b4 {[%emt 0:00:52]} 26. Rc7 {[%emt 0:02:26]} Nb6 {[%emt 0:01:41]} 27. Ke3 {[%emt 0:03:54]} Rxc7 {[%emt 0:02:10]} 28. Rxc7 {[%emt 0:00:21]} Na4 {[%emt 0:00:03]} (28... Kg8 $16) 29. a3 $2 {[%emt 0:07:37]} (29. f5 $18 gxf5 30. gxf5 (30. exf5 Nc3 $16)) 29... b3 $11 {[%emt 0:04:59]} 30. Kd2 {[%emt 0:01:49]} Rb8 {[%emt 0:02:25] [#] Hoping for ...b2.} 31. Rxf7+ $1 {[%emt 0:02:29] Weighted Error Value: White=0.28 (precise) /Black=0.16 (very precise)} 1/2-1/2

[Event "3rd elllobregat Open 2022"]
[Site "Baix Llobregat"]
[Date "2022.11.30"]
[Round "1.2"]
[White "Ootes, Lars"]
[Black "Yu, Yangyi"]
[Result "1/2-1/2"]
[ECO "B46"]
[WhiteElo "2370"]
[BlackElo "2716"]
[Annotator "TA"]
[PlyCount "151"]
[EventDate "2022.11.30"]
[EventType "swiss"]
[EventCountry "ESP"]
[SourceTitle "playchess.com"]
[Source "ChessBase"]
[SourceQuality "1"]
[TimeControl "40/5400+30:1800+30"]

{[%evp 12,151,22,30,29,16,60,-14,-18,-12,-10,-10,-12,-15,-16,-9,-10,-14,-15,-18,-11,-15,-11,-23,-31,-39,-15,-34,-22,-37,-22,-44,-43,-43,-37,-46,-44,-50,-45,-45,-45,-52,-44,-47,-8,-17,-22,-37,9,7,10,7,12,0,0,0,0,0,0,0,0,-35,-35,-35,-35,-35,-35,-42,-8,-8,-8,-35,0,-4,-7,-8,-8,-8,-8,-8,-4,-15,-4,-8,0,0,0,-19,0,0,0,0,0,0,0,0,0,0,0,0,0,0,0,-12,0,0,0,0,0,-8,0,0,0,0,0,0,0,-8,0,0,0,0,0,0,0,0,0,0,0,0,0,0,0,0,0,0,0,0,0,0,0,0]} 1. e4 {[%emt 0:00:07]} c5 {[%emt 0:01:02]} 2. Nf3 {[%emt 0:00:13]} Nc6 {[%emt 0:00:38]} 3. d4 {[%emt 0:00:26]} cxd4 {[%emt 0:00:12]} 4. Nxd4 {[%emt 0:00:00]} e6 {[%emt 0:00:36]} 5. Nc3 {[%emt 0:04:45]} a6 {[%emt 0:07:29]} 6. Bf4 {[%emt 0:03:08]} d6 {[%emt 0:00:00]} 7. Bg3 {[%emt 0:12:06]} Be7 $1 {[%emt 0:18:41][%mdl 4] now scores much better than the old 7...Nf6. B46: Sicilian: Taimanov: 5 Nc3 a6.} 8. Qd2 {[#]} Bd7 $146 {[%emt 0:39:13][%cal Bc8d7,Bd7c6,Bc6e4][%mdl 32]} ({Predecessor:} 8... Nf6 9. Be2 e5 10. Nxc6 bxc6 11. f4 exf4 12. Bxf4 O-O 13. O-O-O Ne8 14. Bc4 Bg4 15. Rdf1 {½-½ (29) Jackson,J (2386)-Czopor,M (2411) Hull 2021}) 9. Nxc6 {[%emt 0:34:42]} ({White should try} 9. O-O-O $14) 9... Bxc6 $11 {[%emt 0:01:24]} 10. O-O-O {[%emt 0:01:14][%cal Rg3d6]} Nf6 {[%emt 0:13:17]} 11. Bxd6 {[%emt 0:16:20]} Bxd6 {[%emt 0:00:00]} 12. Qxd6 {[%emt 0:00:14]} Qxd6 {[%emt 0:00:08]} 13. Rxd6 {[%emt 0:00:04]} Bxe4 {[%emt 0:01:38]} 14. Rd2 {[%emt 0:02:28]} (14. Rd4 $5 {[%cal Rc3e4]} Bc6 15. f3 $11) 14... Bc6 {[%emt 0:00:00]} 15. f3 {[%emt 0:00:37]} Ke7 {[%emt 0:01:01]} 16. Bd3 {[%emt 0:02:13]} Rad8 {[%emt 0:00:00]} 17. Re1 {[%emt 0:03:13]} h5 {[%emt 0:04:44][%cal Bh7h5,Bh5h4,Bh4h3][%mdl 32]} 18. Ne4 {[%emt 0:01:23]} Nd5 {[%emt 0:01:23][%cal Bf6d5,Bd5f4,Bf4g2,Bg2e3][%mdl 32]} 19. a3 {[%emt 0:02:26]} Nf4 {[%emt 0:00:00]} 20. Bf1 {[%emt 0:01:26]} (20. h4 {simplifies} Bxe4 21. Rxe4 Nxd3+ 22. Rxd3 Rxd3 23. cxd3 b5 24. Kd2) 20... h4 {[%emt 0:02:17]} 21. b4 {[%emt 0:12:54]} h3 {[%emt 0:02:12]} (21... Rxd2 {simplifies} 22. Nxd2 g5 23. Re3 Rd8) 22. g3 {[%emt 0:01:23]} Ng2 {[%emt 0:08:02]} 23. Red1 {[%emt 0:01:01]} Rxd2 {[%emt 0:00:00]} 24. Rxd2 {[%emt 0:00:00]} Bxe4 25. fxe4 $15 {[%mdl 4096] Endgame KRB-KRN} Ne3 {[%emt 0:00:55]} 26. Be2 {[%emt 0:00:00]} Rc8 27. e5 {[%emt 0:11:18]} a5 {[%emt 0:00:00]} 28. bxa5 {[%emt 0:00:00][%cal Oc2c4]} Rc5 {[%emt 0:00:00][%csl LRa5,LRe5]} 29. a4 Rxa5 {[%emt 0:08:27]} (29... Rxe5 $15 {might be stronger.} 30. Bb5 Rc5) 30. Bb5 $11 {[%emt 0:00:02] [#] Hoping for Rd7+.} g5 {[%emt 0:00:19]} 31. Rd4 {[%emt 0:03:52] Prevents Ng4.} Nf5 {[%emt 0:00:00]} 32. Rd7+ {[%emt 0:00:00]} Kf8 {[%emt 0:00:00]} 33. g4 {[%emt 0:04:30]} Nh4 {[%emt 0:00:00]} 34. Rd3 {[%emt 0:00:00] Prevents Nf3.} ({Reject} 34. Rxb7 Nf3 35. Rd7 (35. Rb8+ Kg7 $17) 35... Nxh2 $17) 34... Ng6 {[%emt 0:00:00]} 35. Rxh3 Nxe5 {[%emt 0:00:19]} 36. Rg3 {[%emt 0:01:34]} Ra8 {[%emt 0:00:20]} 37. h3 {[%emt 0:00:00]} Ke7 {[%emt 0:00:00]} 38. Rb3 {[%emt 0:00:45]} Kd6 {[%emt 0:00:00]} 39. Kd2 {[%emt 0:00:00]} f5 {[%emt 0:00:00]} 40. gxf5 {[%emt 0:00:00]} exf5 {[%emt 0:07:23]} 41. Be2 {[%emt 0:13:04]} Rd8 {[%emt 0:06:23]} 42. a5 {[%emt 0:00:00] The position is equal.} Kc7+ {[%emt 0:02:39]} 43. Ke1 {[%emt 0:00:49]} Rd5 {[%emt 0:04:24]} 44. a6 {[%emt 0:00:00]} bxa6 {[%emt 0:00:35]} 45. Bxa6 {[%emt 0:00:04]} Ra5 {[%emt 0:01:38]} 46. Be2 {[%emt 0:01:12]} Kc6 {[%emt 0:02:06]} 47. Kf2 {[%emt 0:01:15]} f4 {[%emt 0:03:33]} 48. Rb8 {[%emt 0:03:34]} Kd6 {[%emt 0:00:49]} 49. Rb6+ {[%emt 0:00:00]} Kc5 {[%emt 0:00:00]} 50. Rf6 {[%emt 0:00:00]} Ra2 {[%emt 0:02:33]} 51. Bd1 {[%emt 0:02:35]} Ra1 {[%emt 0:00:33]} 52. Rf5 {[%emt 0:01:14]} Kd4 {[%emt 0:02:13]} 53. c3+ {[%emt 0:00:00]} Ke4 {[%emt 0:00:53][%cal Oa1d1]} 54. Bc2+ {[%emt 0:00:00]} Kd5 {[%emt 0:00:00]} 55. Bb3+ {[%emt 0:00:00]} Kd6 {[%emt 0:00:26]} 56. Rxg5 {[%emt 0:00:00]} Ra3 {[%emt 0:01:14]} 57. Bd1 {[%emt 0:00:07]} Rxc3 {[%emt 0:01:19]} 58. h4 {[%emt 0:03:09]} Rc1 {[%emt 0:00:49]} 59. Rg1 {[%emt 0:00:00]} Rb1 {[%emt 0:01:53]} 60. Bc2 {[%emt 0:00:00]} Rb2 {[%emt 0:00:00]} (60... Rxg1 {simplifies} 61. Kxg1 Nf3+ 62. Kf2 Nxh4 63. Be4 Ke6) 61. Rd1+ {[%emt 0:00:21]} Ke7 {[%emt 0:00:00]} (61... Ke6 $5 62. Rd2 $8 Kf6 $11) 62. Rd2 {[%emt 0:00:14]} Kf6 {[%emt 0:00:00]} 63. Rd6+ {[%emt 0:00:00]} Ke7 {[%emt 0:00:00]} (63... Kg7 $5 64. Rd2 $8 Kf6 $11) 64. Rd2 {[%emt 0:05:18]} Ra2 {[%emt 0:00:16]} 65. h5 {[%emt 0:00:35]} Ra3 {[%emt 0:01:05]} 66. Rd4 {[%emt 0:03:47]} Ng4+ {[%emt 0:00:00]} 67. Ke1 {[%emt 0:01:32]} Ne3 {[%emt 0:00:51]} 68. Bd1 {[%emt 0:00:02]} Ra1 {[%emt 0:00:00] [#] aiming for ...Nc2+.} 69. Ke2 {[%emt 0:00:00]} Ke6 70. h6 {[%emt 0:07:52]} Nxd1 {[%emt 0:00:00]} 71. Rxd1 {[%emt 0:00:00] KR-KR} f3+ {[%emt 0:00:23]} 72. Kd2 $1 {[%emt 0:00:33]} Rxd1+ {[%emt 0:00:00]} 73. Kxd1 {[%emt 0:00:00] h7 would kill now.} Kf6 {[%emt 0:00:05]} 74. Ke1 {[%emt 0:00:00]} (74. h7 $5 Kg7 $8 75. Ke1 $11) 74... Kg6 {[%emt 0:00:00]} 75. Kf2 {[%emt 0:00:00]} Kxh6 {[%emt 0:00:00]} 76. Kxf3 {[%emt 0:00:00] Weighted Error Value: White=0.07 (flawless) /Black=0.06 (flawless)} 1/2-1/2

[Event "3rd elllobregat Open 2022"]
[Site "Baix Llobregat"]
[Date "2022.11.30"]
[Round "1.2"]
[White "Nyysti, Sampsa"]
[Black "Donchenko, Alexander"]
[Result "0-1"]
[ECO "B15"]
[WhiteElo "2338"]
[BlackElo "2645"]
[Annotator "TA"]
[PlyCount "82"]
[EventDate "2022.11.30"]
[EventType "swiss"]
[EventCountry "ESP"]
[SourceTitle "playchess.com"]
[Source "ChessBase"]
[SourceQuality "1"]
[TimeControl "40/5400+30:1800+30"]

{[%evp 9,82,18,39,-25,-15,-9,-18,-20,0,-27,7,14,4,4,6,4,8,0,8,2,7,0,6,0,0,0,5,-17,-22,-25,-25,-54,-15,-13,-14,-14,-13,-8,-9,-12,-11,-10,0,0,0,0,0,0,0,0,0,0,8,8,8,-8,-8,-8,-9,-139,-139,-242,-242,-242,-227,-227,-227,-846,-805,-784,-706,-2089,-1677,-1406,-1212]} 1. e4 {[%emt 0:00:03]} c6 {[%emt 0:00:07]} 2. d4 {[%emt 0:00:16]} d5 {[%emt 0:00:07]} 3. Nd2 {[%emt 0:00:09]} dxe4 {[%emt 0:00:23]} 4. Nxe4 {[%emt 0:00:03]} Nf6 {[%emt 0:00:45]} 5. Qd3 {[%emt 0:01:52]} Nbd7 {[%emt 0:05:47]} 6. Bf4 {[%emt 0:07:33] B15: Caro-Kann: 3 Nc3: 3...g6 and 3...dxe4 4 Nxe4 Nf6 5 Nxf6+ exf6.} (6. Nf3 $14) 6... Nxe4 $11 {[%emt 0:03:51]} 7. Qxe4 {[%emt 0:00:02]} Nf6 {[%emt 0:00:58]} 8. Qd3 {[%emt 0:06:19] The position is equal.} Qa5+ {[%emt 0:10:36]} 9. Bd2 {[%emt 0:05:07]} Qd5 {[%emt 0:00:49]} (9... Qb6 $5 {[%cal Rb6b2]}) 10. c4 {[%emt 0:17:33]} Qe4+ {[%emt 0:01:03] [#]} 11. Be3 $146 {[%emt 0:02:40]} ({Predecessor:} 11. Qxe4 Nxe4 12. Be3 g6 13. O-O-O Bg7 14. Bd3 Nd6 15. Nf3 Be6 16. b3 Nf5 17. Rhe1 Nxe3 18. fxe3 Bg4 19. Bf1 {½-½ (19) Orso,M (2350)-Eperjesi,L (2395) Budapest 1978}) 11... Bf5 {[%emt 0:14:21]} (11... e5 {seems wilder.} 12. Qxe4 Bb4+ 13. Ke2 Nxe4 14. dxe5 Be6) 12. Qxe4 {[%emt 0:01:54]} Bxe4 {[%emt 0:01:29]} 13. Ne2 {[%emt 0:05:26]} e6 {[%emt 0:03:43]} 14. Nc3 {[%emt 0:05:17]} Bf5 {[%emt 0:03:27]} 15. f3 {[%emt 0:02:40]} h5 {[%emt 0:03:42] Inhibits g4.} 16. h4 {[%emt 0:05:49]} Bd6 {[%emt 0:03:52]} 17. Kf2 {[%emt 0:00:40]} a6 {[%emt 0:01:37]} 18. a4 {[%emt 0:03:25]} O-O-O {[%emt 0:04:56]} 19. Be2 {[%emt 0:05:19]} e5 {[%emt 0:01:16]} 20. Rhd1 {[%emt 0:02:34]} Rhe8 {[%emt 0:03:12]} (20... Bc2 $5 {[%cal Rc2d1]} 21. Rd2 exd4 22. Rxd4 Rhe8 $15) 21. d5 {[%emt 0:07:19]} cxd5 {[%emt 0:03:05]} 22. Nxd5 {[%emt 0:00:42]} Nxd5 {[%emt 0:00:42]} 23. Rxd5 {[%emt 0:01:16]} Be7 {[%emt 0:00:32]} 24. Rxd8+ {[%emt 0:02:53]} Rxd8 {[%emt 0:00:26]} 25. g3 {[%emt 0:00:26]} a5 {[%emt 0:04:18]} 26. Rc1 {[%emt 0:03:24]} g6 {[%emt 0:10:07]} 27. c5 $1 {[%emt 0:00:25]} Bd3 {[%emt 0:03:23]} 28. Rc3 {[%emt 0:02:33]} Bxe2 {[%emt 0:01:37]} 29. Kxe2 {[%emt 0:00:03][%mdl 4096] Endgame KRB-KRB} Rd5 {[%emt 0:01:01]} 30. Rb3 {[%emt 0:08:52]} Bxc5 {[%emt 0:03:40]} 31. Rb5 {[%emt 0:00:14][%csl LRa5,LRc5] Prevents Bb4.} b6 {[%emt 0:00:12]} 32. b4 {[%emt 0:01:42]} (32. Bxc5 {simplifies} Rxc5 33. Rxb6 Rc2+ 34. Ke3) 32... axb4 {[%emt 0:00:16] Threatening ...Rd6.} 33. a5 {[%emt 0:00:01]} Rd7 {[%emt 0:05:03] Hoping for ...Bxe3.} 34. axb6 {[%emt 0:00:44]} (34. Bxc5 $11 bxc5 35. Rxc5+ Kb8 36. Rxe5) 34... Bd6 $17 {[%emt 0:00:29]} 35. f4 {[%emt 0:01:57] [#]} (35. Kd3 $17 {was necessary.}) 35... e4 $1 $19 {[%emt 0:02:21]} 36. Bc5 {[%emt 0:00:42]} Bxc5 {[%emt 0:00:29]} 37. Rxc5+ {[%emt 0:00:01]} Kb7 {[%emt 0:00:05]} 38. Rc4 $2 {[%emt 0:00:50]} (38. Rb5) 38... b3 {[%emt 0:01:33] Strongly threatening ...Rd6. Black is clearly winning.} ({Not} 38... Kxb6 39. Rxb4+ Kc7 40. Rxe4 $11) 39. Rb4 {[%emt 0:00:33]} Rd3 {[%emt 0:00:20]} 40. Rxe4 {[%emt 0:00:00]} Rd6 {[%emt 0:00:00]} 41. Re7+ {[%emt 0:06:18]} Kxb6 {[%emt 0:02:17] Weighted Error Value: White=0.50/Black=0.04 (flawless)} 0-1

[Event "3rd elllobregat Open 2022"]
[Site "Baix Llobregat"]
[Date "2022.11.30"]
[Round "1.3"]
[White "Niemann, Hans Moke"]
[Black "Fitzsimons, David"]
[Result "1-0"]
[ECO "E07"]
[WhiteElo "2699"]
[BlackElo "2368"]
[Annotator "TA"]
[PlyCount "101"]
[EventDate "2022.11.30"]
[EventType "swiss"]
[EventCountry "ESP"]
[SourceTitle "playchess.com"]
[Source "ChessBase"]
[SourceQuality "1"]
[TimeControl "40/5400+30:1800+30"]

{[%evp 18,101,13,8,0,0,5,0,0,9,0,0,0,0,0,0,47,41,40,35,47,39,42,43,34,37,37,39,53,40,68,65,65,65,70,51,51,0,53,51,93,102,97,94,163,164,155,153,385,365,382,367,524,520,514,505,480,426,429,408,640,639,631,591,628,606,945,963,963,949,895,885,1096,885,859,808,1416,1335,1242,1210,29960,918,29961,29953,2068,2014]} 1. d4 {[%emt 0:00:03]} d5 {[%emt 0:01:41]} 2. c4 {[%emt 0:01:40]} e6 {[%emt 0:01:41]} 3. Nf3 {[%emt 0:01:43]} Nf6 {[%emt 0:01:31]} 4. g3 {[%emt 0:00:27]} Be7 {[%emt 0:00:30]} 5. Bg2 {[%emt 0:01:46]} O-O {[%emt 0:00:12]} 6. O-O {[%emt 0:00:05]} c6 {[%emt 0:11:15]} 7. Nc3 {[%emt 0:00:59]} Nbd7 {[%emt 0:00:00]} 8. b3 b6 {[%emt 0:02:18][%cal Bb7b6,Bb6b5,Bb5b4][%mdl 32]} 9. Bb2 {[%emt 0:00:43]} Ba6 {[%emt 0:00:26]} 10. Nd2 {[%emt 0:01:18]} b5 {[%emt 0:01:09][%cal Rb5c4] is now debated instead of 10...Rc8. E07: Closed Catalan: Main Line (5 Nf3 0-0 6 0-0 Nbd7).} 11. c5 {[%emt 0:05:22]} b4 {[%emt 0:04:08]} 12. Ncb1 $5 {[%mdl 4] Exploring less charted territory.} Bb5 $1 {[%emt 0:22:45] [#] The position is equal.} 13. Re1 $146 {[%emt 0:13:49]} ({Predecessor:} 13. a4 Ba6 14. Nf3 Ne4 15. Re1 f5 16. Nbd2 Bf6 17. Rc1 Qc7 18. Ba1 Rae8 19. e3 {1-0 (39) Nogerbek,K (2356)-Mitsis,G (2355) Chess.com INT 2021}) 13... e5 {[%emt 0:06:44]} 14. dxe5 {[%emt 0:00:23] [#] a4 is the strong threat.} Ng4 {[%emt 0:00:00]} 15. Nf3 {[%emt 0:01:33]} ({Wrong is} 15. e4 $2 f5 16. exf6 (16. exd5 $2 {perishes.} Bxc5 17. Re2 Bxe2 $19) 16... Bxf6 17. Qxg4 Bxb2 $19) 15... Bxc5 {[%emt 0:00:06]} 16. e3 {[%emt 0:15:35]} Qe7 {[%emt 0:05:00]} (16... Re8 $11 {deserves consideration.}) 17. a4 $14 Ba6 {[%emt 0:04:13]} 18. Nbd2 {[%emt 0:02:15] Inhibits f6.} Ngxe5 {[%emt 0:00:00]} 19. Nxe5 {[%emt 0:01:59]} Nxe5 {[%emt 0:00:00]} 20. Bxe5 {[%emt 0:00:04]} Qxe5 {[%emt 0:00:00]} 21. Rc1 {[%emt 0:04:44]} Bb6 {[%emt 0:00:29]} 22. Rxc6 {[%emt 0:00:16]} Rac8 {[%emt 0:01:06]} 23. Nf3 {[%emt 0:04:13]} Qh5 {[%emt 0:02:39]} 24. Nd4 {[%emt 0:06:44]} Qxd1 {[%emt 0:10:49]} 25. Rxd1 {[%emt 0:10:07]} Bb7 {[%emt 0:23:06]} 26. Rxc8 {[%emt 0:00:07] White is much more active.} Rxc8 {[%emt 0:00:45]} 27. Ne2 {[%emt 0:09:24]} (27. Nf5 $1 $14 Rd8 28. Ne7+ Kf8 29. Nxd5) 27... Kf8 {[%emt 0:05:19]} (27... Ba6 $11 28. Bf3 Rc2) 28. Nf4 {[%emt 0:01:47]} Rc3 {[%emt 0:00:00]} 29. Nxd5 {[%emt 0:00:38]} Bxd5 {[%emt 0:00:00]} (29... Rxb3 $2 30. Nxb6 Bxg2 31. Nd7+ Ke8 32. Kxg2 $18) 30. Bxd5 $16 {[%emt 0:01:12][%mdl 4096] Endgame KRB-KRB} g5 {[%emt 0:00:17]} (30... Rc5 $16 31. Bc4 Ke7) 31. Bc4 $18 {[%emt 0:00:00]} Ke7 {[%emt 0:00:58]} 32. Rd5 {[%emt 0:01:16] Threatens to win with a5.} a5 $2 {[%emt 0:00:57] This move loses the game for Black.} (32... f6 $16 33. a5 Bd8) 33. Rb5 {[%emt 0:01:20]} ({Don't take} 33. Rxg5 Rxe3 34. Rb5 Re1+ 35. Kg2 Bd8 $18) 33... Bc7 {[%emt 0:00:00]} 34. Rxg5 {[%emt 0:00:00]} Kf6 {[%emt 0:01:28]} (34... h6 {keeps fighting.}) 35. Rc5 {[%emt 0:00:27]} Bd8 {[%emt 0:00:00]} 36. Rd5 {[%emt 0:00:37]} Ke7 {[%emt 0:00:00]} 37. Rf5 f6 {[%emt 0:00:00]} 38. Rh5 {[%emt 0:00:00]} Bb6 {[%emt 0:00:00]} (38... Bc7 $142 39. Kf1 Kd7) 39. Rxh7+ {[%emt 0:00:00]} Kd6 {[%emt 0:00:00]} 40. Rh4 Ke5 {[%emt 0:01:03]} 41. Kg2 {[%emt 0:02:38]} Kf5 {[%emt 0:00:42]} 42. Rh5+ {[%emt 0:00:00]} Kg6 {[%emt 0:00:00]} 43. Rb5 {[%emt 0:00:33]} Bd8 {[%emt 0:00:20]} 44. h4 {[%emt 0:00:15][%cal Bh2h4,Bh4h5][%mdl 32]} Bc7 {[%emt 0:00:00]} 45. h5+ {[%emt 0:00:00]} Kh6 {[%emt 0:00:00]} 46. g4 {[%emt 0:00:27][%cal Bg3g4,Bg4g5][%mdl 32]} Bd8 {[%emt 0:00:00]} 47. Rb7 {[%emt 0:00:53]} Kg5 {[%emt 0:00:47]} 48. Kg3 {[%emt 0:00:43] [#] Intending Rh7 and mate.} Rc1 {[%emt 0:00:29]} 49. f4+ {[%emt 0:00:00]} Kh6 {[%emt 0:00:00]} 50. Rd7 {[%emt 0:00:26]} Bb6 {[%emt 0:00:30]} 51. g5+ {[%emt 0:00:00] Weighted Error Value: White=0.05 (flawless) /Black=0.32} 1-0